bitfinex/quotes_BTCUSD_20241208
["timestamp","ask_amount","ask_price","bid_price","bid_amount"]
[1733660127443,0.4114548,99751.0,99750.0,0.0037304]
[1733660127652,0.54661733,99751.0,99750.0,0.0017304]
[1733660127860,0.4114548,99751.0,99750.0,0.0017304]
[1733660128082,0.4114548,99751.0,99750.0,0.0027304]
[1733660128301,0.54657042,99751.0,99750.0,0.0027304]
[1733660128505,0.54657042,99751.0,99750.0,0.0017304]
[1733660128506,0.89397131,99751.0,99750.0,0.0017304]
[1733660128716,1.07718802,99751.0,99750.0,0.0017304]
[1733660128932,1.08618802,99751.0,99750.0,0.0027304]
[1733660129387,0.13997629,99751.0,99750.0,0.0027304]
[1733660129616,0.14522951,99751.0,99750.0,0.0027304]
[1733660130903,0.14122951,99751.0,99750.0,0.0027304]
[1733660131122,0.13222951,99751.0,99750.0,0.0017304]
[1733660131329,0.13622951,99751.0,99750.0,0.0017304]
[1733660132058,0.13922951,99751.0,99750.0,0.0017304]
[1733660132708,0.13622951,99751.0,99750.0,0.0017304]
[1733660133167,0.13722951,99751.0,99750.0,0.0017304]
[1733660135123,0.01517629,99751.0,99750.0,0.0017304]
[1733660135759,0.01642945,99751.0,99750.0,0.0017304]
[1733660135970,0.01542945,99751.0,99750.0,0.0017304]
[1733660136196,0.01142945,99751.0,99750.0,0.0017304]
[1733660136440,0.01017629,99751.0,99750.0,0.0017304]
[1733660136648,0.01117629,99751.0,99750.0,0.0017304]
[1733660137114,0.001,99751.0,99750.0,0.0017304]
[1733660137534,0.0008656,99760.0,99751.0,0.180449]
[1733660137963,0.01012071,99759.0,99751.0,0.180449]
[1733660138215,0.01012071,99759.0,99751.0,0.360898]
[1733660138423,0.01012071,99759.0,99755.0,0.18044]
[1733660139064,0.0048656,99760.0,99755.0,0.18044]
[1733660139065,0.0018656,99760.0,99755.0,0.18044]
[1733660139311,0.03,99757.0,99755.0,0.18044]
[1733660141989,0.03,99757.0,99755.0,0.18144]
[1733660142635,0.03,99757.0,99756.0,0.023]
[1733660142851,0.0008656,99760.0,99757.0,0.360876]
[1733660143069,0.0008656,99760.0,99758.0,0.023]
[1733660144411,0.0008656,99760.0,99759.0,0.180434]
[1733660144642,0.0018656,99760.0,99759.0,0.203434]
[1733660145352,0.0008656,99760.0,99759.0,0.203434]
[1733660145578,0.0018656,99760.0,99759.0,0.203434]
[1733660146478,0.0018656,99760.0,99759.0,0.2136186]
[1733660146726,0.0018656,99760.0,99759.0,0.0331846]
[1733660146949,0.0786656,99760.0,99759.0,0.0101846]
[1733660147468,0.18044,99756.0,99750.0,0.0017304]
[1733660147653,0.08887818,99760.0,99751.0,0.02776821]
[1733660147654,0.18169513,99755.0,99751.0,0.02776821]
[1733660147881,0.19185798,99755.0,99751.0,0.02028242]
[1733660148104,0.19185798,99755.0,99750.0,0.0017304]
[1733660149224,0.19185798,99755.0,99750.0,0.0027304]
[1733660149451,0.180449,99751.0,99750.0,0.0027304]
[1733660149672,0.18170219,99751.0,99750.0,0.0017304]
[1733660149896,0.19187029,99751.0,99750.0,0.0017304]
[1733660150596,0.19187029,99751.0,99750.0,0.0027304]
[1733660150825,0.19187029,99751.0,99750.0,0.0017304]
[1733660151325,0.19387029,99751.0,99750.0,0.0017304]
[1733660155435,0.01342129,99751.0,99750.0,0.0017304]
[1733660158571,0.19387029,99751.0,99750.0,0.0017304]
[1733660161159,0.01342129,99751.0,99750.0,0.0017304]
[1733660162041,0.01142129,99751.0,99750.0,0.0017304]
[1733660162250,0.01142129,99751.0,99750.0,0.0027304]
[1733660163808,0.19187029,99751.0,99750.0,0.0027304]
[1733660164261,0.01142129,99751.0,99750.0,0.0027304]
[1733660167069,0.19187029,99751.0,99750.0,0.0027304]
[1733660173297,0.19187029,99751.0,99750.0,0.0017304]
[1733660173923,0.19487029,99751.0,99750.0,0.0017304]
[1733660177620,0.42379983,99751.0,99750.0,0.0017304]
[1733660177879,0.72520511,99751.0,99750.0,0.0017304]
[1733660178123,0.77023697,99751.0,99750.0,0.0017304]
[1733660178381,0.63514141,99751.0,99750.0,0.0017304]
[1733660178585,0.70764217,99751.0,99750.0,0.0017304]
[1733660179211,0.57454661,99751.0,99750.0,0.0017304]
[1733660180549,0.7066139,99751.0,99750.0,0.0017304]
[1733660180819,0.57154661,99751.0,99750.0,0.0017304]
[1733660181253,0.71259705,99751.0,99750.0,0.0017304]
[1733660182243,0.57754661,99751.0,99750.0,0.0017304]
[1733660183527,0.71259705,99751.0,99750.0,0.0017304]
[1733660185158,0.57754661,99751.0,99750.0,0.0017304]
[1733660185717,0.67736195,99751.0,99750.0,0.0017304]
[1733660185970,1.00209925,99751.0,99750.0,0.0017304]
[1733660186396,1.05209925,99751.0,99750.0,0.0017304]
[1733660186599,1.27725851,99751.0,99750.0,0.0017304]
[1733660186855,1.27525851,99751.0,99750.0,4e-07]
[1733660187026,0.456167,99741.0,99740.0,0.0017306]
[1733660187230,0.55619651,99741.0,99740.0,0.0017306]
[1733660187440,0.56679547,99741.0,99740.0,0.0017306]
[1733660187644,0.8802342,99741.0,99740.0,0.0017306]
[1733660187904,1.16000078,99741.0,99740.0,0.0017306]
[1733660188312,0.98586536,99741.0,99740.0,0.0027306]
[1733660188526,1.1658166,99741.0,99740.0,0.0027306]
[1733660188869,0.98586536,99741.0,99740.0,0.0027306]
[1733660189072,0.98786536,99741.0,99740.0,0.0027306]
[1733660189273,0.67461081,99741.0,99740.0,0.0027306]
[1733660189544,0.98792647,99741.0,99740.0,0.0027306]
[1733660190350,1.26290076,99741.0,99740.0,0.0027306]
[1733660190774,1.3325215,99741.0,99740.0,0.0017306]
[1733660191083,1.3395215,99741.0,99740.0,0.0027306]
[1733660191293,1.3395215,99741.0,99740.0,0.0017306]
[1733660191294,1.57577843,99741.0,99740.0,0.0017306]
[1733660191449,0.180521,99711.0,99710.0,0.0017302]
[1733660191650,0.180521,99711.0,99710.0,0.00179948]
[1733660191831,0.49294536,99711.0,99710.0,0.00179948]
[1733660192043,0.49169159,99711.0,99710.0,0.00179948]
[1733660192441,0.49164646,99711.0,99710.0,0.00179948]
[1733660194430,0.49464646,99711.0,99710.0,0.00179948]
[1733660194804,0.50447547,99711.0,99710.0,0.00179948]
[1733660195008,0.50547547,99711.0,99710.0,0.00179948]
[1733660210224,0.75550498,99711.0,99710.0,0.00179948]
[1733660210632,0.83650498,99711.0,99710.0,0.00179948]
[1733660213240,0.89112089,99711.0,99710.0,0.00179948]
[1733660214056,0.83650498,99711.0,99710.0,0.00179948]
[1733660218412,0.85639787,99711.0,99710.0,0.00179948]
[1733660219249,1.00609787,99711.0,99710.0,4.8e-07]
[1733660220099,1.52338277,99711.0,99710.0,4.8e-07]
[1733660220318,1.34071484,99711.0,99710.0,4.8e-07]
[1733660220450,1.44953018,99711.0,99710.0,4.8e-07]
[1733660220668,1.6292898,99711.0,99710.0,4.8e-07]
[1733660220866,0.330539,99701.0,99700.0,0.0017304]
[1733660221149,0.78104851,99701.0,99700.0,0.00191268]
[1733660221359,0.86896015,99701.0,99700.0,0.00191268]
[1733660221968,0.87296015,99701.0,99700.0,0.00191268]
[1733660224067,0.88196015,99701.0,99700.0,0.00191268]
[1733660224695,0.89226321,99701.0,99700.0,0.00191268]
[1733660225291,0.81476321,99701.0,99700.0,0.00191268]
[1733660225495,0.76506321,99701.0,99700.0,0.00191268]
[1733660243555,0.85510304,99701.0,99700.0,0.00191268]
[1733660244026,0.76506321,99701.0,99700.0,0.00191268]
[1733660244472,0.85513104,99701.0,99700.0,0.00191268]
[1733660244637,0.70513104,99701.0,99700.0,0.00191268]
[1733660244844,0.61506321,99701.0,99700.0,0.00191268]
[1733660248589,0.3344947,99701.0,99700.0,0.00191268]
[1733660248792,0.32419164,99701.0,99700.0,0.00191268]
[1733660249656,0.32019164,99701.0,99700.0,0.00191268]
[1733660249856,0.31119164,99701.0,99700.0,0.00191268]
[1733660250067,0.31919164,99701.0,99700.0,0.00191268]
[1733660250474,0.31119164,99701.0,99700.0,0.00191268]
[1733660250815,0.31319164,99701.0,99700.0,0.00191268]
[1733660251032,0.31219164,99701.0,99700.0,0.00191268]
[1733660252218,0.31119164,99701.0,99700.0,0.00191268]
[1733660253451,0.31119164,99701.0,99700.0,0.00391268]
[1733660257492,0.31119164,99701.0,99700.0,0.10241268]
[1733660257700,0.31119164,99701.0,99700.0,0.15051268]
[1733660258864,0.30078,99701.0,99700.0,0.15051268]
[1733660259311,0.31124185,99701.0,99700.0,0.15051268]
[1733660260430,0.31124185,99701.0,99700.0,0.16060587]
[1733660261915,0.31124185,99701.0,99700.0,0.07941268]
[1733660262118,0.31124185,99701.0,99700.0,0.00391268]
[1733660262321,0.49178085,99701.0,99700.0,0.00391268]
[1733660262490,0.31124185,99701.0,99700.0,0.00391268]
[1733660263019,0.49178085,99701.0,99700.0,0.00391268]
[1733660263801,0.50179141,99701.0,99700.0,0.00391268]
[1733660266810,0.31124185,99701.0,99700.0,0.00391268]
[1733660267576,0.49178085,99701.0,99700.0,0.00391268]
[1733660271938,0.31124185,99701.0,99700.0,0.00391268]
[1733660273109,0.31124185,99701.0,99700.0,0.02691268]
[1733660273534,0.30078,99701.0,99700.0,0.02691268]
[1733660273945,0.31122995,99701.0,99700.0,0.02691268]
[1733660274594,0.31122995,99701.0,99700.0,0.03697028]
[1733660277508,0.31122995,99701.0,99700.0,0.02691268]
[1733660283411,0.31122995,99701.0,99700.0,0.00391268]
[1733660299074,0.39372995,99701.0,99700.0,0.00391268]
[1733660299441,0.53955946,99701.0,99700.0,0.00391268]
[1733660300586,0.68955946,99701.0,99700.0,0.00391268]
[1733660301039,0.77966752,99701.0,99700.0,0.00391268]
[1733660301256,0.77966752,99701.0,99700.0,0.00291268]
[1733660301475,0.77966752,99701.0,99700.0,0.00191268]
[1733660301684,0.69155946,99701.0,99700.0,0.00191268]
[1733660301891,0.69755946,99701.0,99700.0,0.00191268]
[1733660302330,0.69155946,99701.0,99700.0,0.00191268]
[1733660302549,0.69655946,99701.0,99700.0,0.00191268]
[1733660303470,0.78466752,99701.0,99700.0,0.00191268]
[1733660303689,0.69655946,99701.0,99700.0,0.00191268]
[1733660304124,0.83155776,99701.0,99700.0,0.00191268]
[1733660304348,1.23455705,99701.0,99700.0,0.00191268]
[1733660304584,1.23464446,99701.0,99700.0,0.00191268]
[1733660304782,1.05455932,99701.0,99700.0,0.00191268]
[1733660304993,0.74655946,99701.0,99700.0,0.00191268]
[1733660305623,1.05450982,99701.0,99700.0,0.00191268]
[1733660305868,0.83162455,99701.0,99700.0,0.00191268]
[1733660306074,0.69655946,99701.0,99700.0,0.00191268]
[1733660306506,0.78659223,99701.0,99700.0,0.00191268]
[1733660306939,0.69655946,99701.0,99700.0,0.00191268]
[1733660307848,0.78657345,99701.0,99700.0,0.00191268]
[1733660308297,0.69655946,99701.0,99700.0,0.00191268]
[1733660314705,0.41825946,99701.0,99700.0,0.00191268]
[1733660316322,0.41821431,99701.0,99700.0,0.00191268]
[1733660325806,0.3181848,99701.0,99700.0,0.00191268]
[1733660332261,0.4987238,99701.0,99700.0,0.00191268]
[1733660332509,0.59875331,99701.0,99700.0,0.00191268]
[1733660332737,0.67535331,99701.0,99700.0,0.00191268]
[1733660335609,0.68547171,99701.0,99700.0,0.00191268]
[1733660337404,0.83547171,99701.0,99700.0,0.00191268]
[1733660337838,0.97052769,99701.0,99700.0,0.00191268]
[1733660340914,0.83547171,99701.0,99700.0,0.00191268]
[1733660341558,1.1431734,99701.0,99700.0,0.00191268]
[1733660341783,0.83547171,99701.0,99700.0,0.00191268]
[1733660342675,1.14341336,99701.0,99700.0,0.00191268]
[1733660342891,0.83547171,99701.0,99700.0,0.00191268]
[1733660343514,1.27862737,99701.0,99700.0,0.00191268]
[1733660343745,0.83547171,99701.0,99700.0,0.00191268]
[1733660344182,0.92557271,99701.0,99700.0,0.00191268]
[1733660344628,0.83547171,99701.0,99700.0,0.00191268]
[1733660345464,0.92557512,99701.0,99700.0,0.00191268]
[1733660345655,0.83547171,99701.0,99700.0,0.00191268]
[1733660347441,0.92557488,99701.0,99700.0,0.00191268]
[1733660347669,0.83547171,99701.0,99700.0,0.00191268]
[1733660348890,0.92557689,99701.0,99700.0,0.00191268]
[1733660349496,0.83547171,99701.0,99700.0,0.00191268]
[1733660350882,0.75887171,99701.0,99700.0,0.00191268]
[1733660355608,0.84898408,99701.0,99700.0,0.00191268]
[1733660356031,0.75887171,99701.0,99700.0,0.00191268]
[1733660359242,0.84898408,99701.0,99700.0,0.00191268]
[1733660359708,0.92988408,99701.0,99700.0,0.00191268]
[1733660362609,0.9298968,99701.0,99700.0,0.00191268]
[1733660363205,0.83977171,99701.0,99700.0,0.00191268]
[1733660363411,0.92989947,99701.0,99700.0,0.00191268]
[1733660363822,0.83977171,99701.0,99700.0,0.00191268]
[1733660364495,0.92989861,99701.0,99700.0,0.00191268]
[1733660364711,0.83977171,99701.0,99700.0,0.00191268]
[1733660373630,0.97496202,99701.0,99700.0,0.00191268]
[1733660374787,1.14916766,99701.0,99700.0,0.00191268]
[1733660375681,1.32942141,99701.0,99700.0,0.00191268]
[1733660376527,1.14916766,99701.0,99700.0,0.00191268]
[1733660377384,1.1494073,99701.0,99700.0,0.00191268]
[1733660381581,1.1960073,99701.0,99700.0,0.00191268]
[1733660381797,1.22703958,99701.0,99700.0,0.00191268]
[1733660382203,1.22705302,99701.0,99700.0,0.00191268]
[1733660392746,1.22705302,99701.0,99670.0,0.1251308]
[1733660392747,0.05,99692.0,99670.0,0.0017308]
[1733660392957,0.180594,99671.0,99670.0,0.00191298]
[1733660393197,0.28062351,99671.0,99670.0,0.00191298]
[1733660393406,0.59170509,99671.0,99670.0,0.00191298]
[1733660393852,0.90733447,99671.0,99670.0,0.00191298]
[1733660394071,1.13305772,99671.0,99670.0,0.00191298]
[1733660394230,1.13305772,99671.0,99670.0,0.00291298]
[1733660394629,1.08774646,99671.0,99670.0,0.00191298]
[1733660394832,1.09374646,99671.0,99670.0,0.00191298]
[1733660395124,0.91333447,99671.0,99670.0,0.00191298]
[1733660395333,0.99403447,99671.0,99670.0,0.00191298]
[1733660395692,1.17437008,99671.0,99670.0,0.00191298]
[1733660395853,1.1633332,99671.0,99670.0,0.00191298]
[1733660396068,1.1593332,99671.0,99670.0,0.00191298]
[1733660396272,1.40559734,99671.0,99670.0,0.00191298]
[1733660396614,1.18587409,99671.0,99670.0,0.00191298]
[1733660396791,1.36613837,99671.0,99670.0,0.00191298]
[1733660397019,1.36213837,99671.0,99670.0,0.00191298]
[1733660397224,1.34283964,99671.0,99670.0,0.00191298]
[1733660397428,1.35183964,99671.0,99670.0,0.00191298]
[1733660397686,0.85594598,99671.0,99670.0,0.00191298]
[1733660398361,1.34994818,99671.0,99670.0,0.00191298]
[1733660398569,1.39540715,99671.0,99670.0,0.00191298]
[1733660398778,1.1696839,99671.0,99670.0,9.8e-07]
[1733660399193,1.17962682,99671.0,99670.0,9.8e-07]
[1733660399394,1.32878837,99671.0,99670.0,9.8e-07]
[1733660399630,1.5538953,99671.0,99670.0,9.8e-07]
[1733660399835,0.180648,99641.0,99640.0,0.00064263]
[1733660400285,0.49175657,99641.0,99640.0,0.00082456]
[1733660400738,0.59178608,99641.0,99640.0,0.00082456]
[1733660400975,0.59178608,99641.0,99632.0,0.07449117]
[1733660401222,0.259759,99635.0,99632.0,0.00018196]
[1733660401491,0.15,99633.0,99632.0,0.00018196]
[1733660401713,0.25128434,99633.0,99632.0,0.00018196]
[1733660401940,0.26032314,99633.0,99632.0,0.00018196]
[1733660402377,0.66087333,99633.0,99632.0,0.00018196]
[1733660403064,0.66387333,99633.0,99632.0,0.00018196]
[1733660403270,0.67087333,99633.0,99632.0,0.00018196]
[1733660403694,0.66387333,99633.0,99632.0,0.00018196]
[1733660403903,0.67187333,99633.0,99632.0,0.00018196]
[1733660404133,0.57205799,99633.0,99632.0,0.00018196]
[1733660405770,0.57205799,99633.0,99610.0,0.0008656]
[1733660405771,0.330693,99616.0,99615.0,0.0129334]
[1733660405973,0.43072251,99616.0,99615.0,0.01351043]
[1733660406205,0.73145736,99616.0,99615.0,0.01351043]
[1733660406424,0.74154436,99616.0,99615.0,0.01351043]
[1733660406643,0.8327591,99616.0,99615.0,0.01351043]
[1733660406849,0.74154436,99616.0,99615.0,0.01351043]
[1733660407536,0.81754436,99616.0,99615.0,0.01351043]
[1733660408708,0.330721,99601.0,99600.0,0.0017304]
[1733660408913,0.330721,99601.0,99600.0,0.00179308]
[1733660408914,0.73148536,99601.0,99600.0,0.00179308]
[1733660409120,0.81467736,99601.0,99600.0,0.00179308]
[1733660409375,0.88967736,99601.0,99600.0,0.00179308]
[1733660410084,0.89067736,99601.0,99600.0,0.00279308]
[1733660410465,0.88967736,99601.0,99600.0,0.00279308]
[1733660410681,0.89767736,99601.0,99600.0,0.00279308]
[1733660411492,0.56880782,99601.0,99600.0,0.00179308]
[1733660411754,0.41880782,99601.0,99600.0,0.00179308]
[1733660411889,0.32077831,99601.0,99600.0,0.00179308]
[1733660412687,0.31877831,99601.0,99600.0,0.00179308]
[1733660412929,0.31077831,99601.0,99600.0,0.00179308]
[1733660413364,0.31277831,99601.0,99600.0,0.00179308]
[1733660413580,0.84882271,99601.0,99600.0,0.00179308]
[1733660413801,0.85082271,99601.0,99600.0,0.00179308]
[1733660414098,0.86653358,99601.0,99600.0,0.00179308]
[1733660414289,0.91453358,99601.0,99600.0,0.00179308]
[1733660414508,0.91653358,99601.0,99600.0,0.00179308]
[1733660414957,0.91653358,99601.0,99600.0,0.00279308]
[1733660415411,0.91653358,99601.0,99600.0,0.00179308]
[1733660415810,0.74552882,99601.0,99600.0,0.00179308]
[1733660416220,0.74152882,99601.0,99600.0,0.00179308]
[1733660416697,0.74452882,99601.0,99600.0,0.00179308]
[1733660417102,0.75352882,99601.0,99600.0,0.00179308]
[1733660417694,0.74452882,99601.0,99600.0,0.00179308]
[1733660417863,0.74152882,99601.0,99600.0,0.00179308]
[1733660418090,0.74352882,99601.0,99600.0,0.00179308]
[1733660418805,0.74152882,99601.0,99600.0,0.00179308]
[1733660419017,0.59552882,99601.0,99600.0,0.00179308]
[1733660419399,0.74552882,99601.0,99600.0,0.00179308]
[1733660419602,0.31477831,99601.0,99600.0,0.00179308]
[1733660419854,0.31077831,99601.0,99600.0,0.00179308]
[1733660420235,0.31377831,99601.0,99600.0,0.00179308]
[1733660420474,0.31077831,99601.0,99600.0,0.00179308]
[1733660420926,0.31377831,99601.0,99600.0,0.00179308]
[1733660421096,0.31377831,99601.0,99600.0,0.07739308]
[1733660421736,0.30373485,99601.0,99600.0,0.07739308]
[1733660422188,0.31079616,99601.0,99600.0,0.07739308]
[1733660422383,0.31279616,99601.0,99600.0,0.07739308]
[1733660422833,0.31279616,99601.0,99600.0,0.07939308]
[1733660423261,0.31079616,99601.0,99600.0,0.07739308]
[1733660423667,0.31179616,99601.0,99600.0,0.07839308]
[1733660424626,0.31179616,99601.0,99600.0,0.08039308]
[1733660425995,0.31179616,99601.0,99600.0,0.15319308]
[1733660426198,0.31179616,99601.0,99600.0,0.25322259]
[1733660426642,0.30173485,99601.0,99600.0,0.25322259]
[1733660427097,0.31184134,99601.0,99600.0,0.25322259]
[1733660427511,0.31184134,99601.0,99600.0,0.30322259]
[1733660427729,0.31184134,99601.0,99600.0,0.50322259]
[1733660427940,0.30173485,99601.0,99600.0,0.50322259]
[1733660428197,0.30173485,99601.0,99600.0,0.51338786]
[1733660428414,0.30173485,99601.0,99600.0,0.51138786]
[1733660428607,0.311802,99601.0,99600.0,0.51138786]
[1733660428843,0.311802,99601.0,99600.0,0.51238786]
[1733660429252,0.312802,99601.0,99600.0,0.51338786]
[1733660429462,0.310802,99601.0,99600.0,0.51038786]
[1733660429672,0.311802,99601.0,99600.0,0.51238786]
[1733660429878,0.312802,99601.0,99600.0,0.51338786]
[1733660433241,0.01206715,99601.0,99600.0,0.51338786]
[1733660433557,0.002,99601.0,99600.0,0.51338786]
[1733660434598,0.0027326,99610.0,99609.0,0.430706]
[1733660434814,0.0027326,99610.0,99609.0,0.66723551]
[1733660435878,0.0037326,99610.0,99609.0,0.67223551]
[1733660436109,6e-07,99610.0,99609.0,0.67223551]
[1733660436286,0.15125444,99658.0,99626.0,0.1135]
[1733660436513,0.180619,99657.0,99642.0,0.180645]
[1733660436742,0.180619,99657.0,99627.0,0.10053365]
[1733660436743,0.18187539,99656.0,99629.0,0.00050414]
[1733660436940,0.18187539,99656.0,99643.0,0.180644]
[1733660437244,0.03,99648.0,99643.0,0.180644]
[1733660437779,0.03,99648.0,99643.0,0.18070668]
[1733660438798,0.034,99648.0,99643.0,0.18070668]
[1733660439243,0.034,99648.0,99643.0,6.268e-05]
[1733660439656,0.034,99648.0,99643.0,0.18070668]
[1733660440075,0.035,99648.0,99643.0,0.18070668]
[1733660443268,0.035,99648.0,99643.0,6.268e-05]
[1733660443600,0.00825358,99647.0,99643.0,6.268e-05]
[1733660444795,0.00825358,99647.0,99643.0,0.18070568]
[1733660444998,0.01225358,99647.0,99643.0,0.18070568]
[1733660445537,0.01325358,99647.0,99643.0,0.18070568]
[1733660445756,0.01325358,99647.0,99644.0,0.180642]
[1733660446013,0.005,99647.0,99644.0,0.180642]
[1733660446425,0.005,99647.0,99644.0,0.361284]
[1733660446578,0.004,99647.0,99644.0,0.361284]
[1733660446792,0.004,99647.0,99645.0,0.00050414]
[1733660447004,0.004,99647.0,99646.0,0.180639]
[1733660447195,0.004,99647.0,99646.0,0.18114295]
[1733660448673,0.0017326,99650.0,99647.0,0.180637]
[1733660448853,0.0017326,99650.0,99647.0,0.18114094]
[1733660450058,0.0017326,99650.0,99647.0,0.18414094]
[1733660451181,0.0017326,99650.0,99647.0,0.18714094]
[1733660452024,0.0017326,99650.0,99647.0,0.006]
[1733660452225,0.0017326,99650.0,99647.0,0.186636]
[1733660452434,0.00826044,99649.0,99647.0,0.186636]
[1733660452671,0.0017326,99650.0,99647.0,0.186636]
[1733660454221,0.0017326,99650.0,99647.0,0.180636]
[1733660454435,0.0017326,99650.0,99647.0,0.183636]
[1733660454647,0.0017326,99650.0,99647.0,0.187636]
[1733660454868,0.0017326,99650.0,99647.0,0.183636]
[1733660455318,0.0017326,99650.0,99647.0,0.186636]
[1733660456027,0.0017326,99650.0,99647.0,0.186637]
[1733660456466,0.00826765,99649.0,99647.0,0.186637]
[1733660456684,0.0017326,99650.0,99647.0,0.186637]
[1733660456928,0.00829903,99648.0,99647.0,0.186637]
[1733660457145,0.0017326,99650.0,99647.0,0.186637]
[1733660457367,0.0017326,99650.0,99647.0,0.183637]
[1733660457591,0.00826627,99649.0,99645.0,0.180641]
[1733660457815,0.00826627,99649.0,99647.0,0.007]
[1733660458029,0.0017326,99650.0,99647.0,0.003]
[1733660458729,0.00826627,99649.0,99647.0,0.003]
[1733660459158,0.0017326,99650.0,99647.0,0.003]
[1733660459618,0.00826627,99649.0,99647.0,0.003]
[1733660460223,0.0017326,99650.0,99647.0,0.003]
[1733660460638,0.0017326,99650.0,99647.0,0.006]
[1733660460862,0.0017326,99650.0,99646.0,0.00050396]
[1733660460863,0.00826765,99649.0,99646.0,0.00050396]
[1733660461075,0.00826765,99649.0,99643.0,0.26100668]
[1733660461076,0.0017326,99650.0,99647.0,0.187637]
[1733660461274,0.00826765,99648.0,99647.0,0.187637]
[1733660461490,0.0017326,99650.0,99644.0,0.00050396]
[1733660461689,0.00826873,99648.0,99645.0,0.180641]
[1733660461920,0.0017326,99650.0,99647.0,0.003]
[1733660462351,0.00826765,99649.0,99646.0,0.00050396]
[1733660462596,0.00826765,99649.0,99647.0,0.003]
[1733660462752,0.0017326,99650.0,99647.0,0.003]
[1733660463190,0.00826765,99649.0,99648.0,0.180635]
[1733660463355,0.00826765,99649.0,99648.0,0.18113895]
[1733660463565,0.0017326,99650.0,99648.0,0.18113895]
[1733660463766,0.0017326,99650.0,99649.0,0.00050383]
[1733660464196,0.0017326,99650.0,99649.0,0.02350383]
[1733660464406,0.0017326,99650.0,99649.0,0.20023334]
[1733660464619,0.0017326,99650.0,99649.0,0.19972951]
[1733660465450,0.0017326,99650.0,99649.0,0.20572951]
[1733660465656,0.0017326,99650.0,99649.0,0.25572951]
[1733660466924,0.0017326,99650.0,99649.0,0.24972951]
[1733660467118,0.0027326,99650.0,99649.0,0.25672951]
[1733660467266,0.0027326,99650.0,99649.0,0.26072951]
[1733660467486,0.0017326,99650.0,99649.0,0.25372951]
[1733660467680,0.0017326,99650.0,99649.0,0.25672951]
[1733660467681,0.0027326,99650.0,99649.0,0.25672951]
[1733660468082,0.0037326,99650.0,99649.0,0.27266662]
[1733660468252,0.0037326,99650.0,99649.0,0.32266662]
[1733660470082,0.0037326,99650.0,99649.0,0.27266662]
[1733660470286,0.0037326,99650.0,99649.0,0.32266662]
[1733660470917,0.0037326,99650.0,99649.0,0.37246662]
[1733660471541,0.0037326,99650.0,99649.0,0.46215987]
[1733660472535,0.0037326,99650.0,99649.0,0.41215987]
[1733660472767,0.0037326,99650.0,99649.0,0.46239447]
[1733660473146,0.0037326,99650.0,99649.0,0.37246662]
[1733660473319,0.0037326,99650.0,99649.0,0.32246662]
[1733660473525,0.0037326,99650.0,99649.0,0.46239447]
[1733660474444,0.0037326,99650.0,99649.0,0.37246662]
[1733660474651,0.0037326,99650.0,99649.0,0.46239447]
[1733660475109,0.0037326,99650.0,99649.0,0.46239924]
[1733660475567,0.0037326,99650.0,99649.0,0.02293711]
[1733660475775,0.0037326,99650.0,99649.0,0.013]
[1733660476239,0.01206954,99650.0,99649.0,0.013]
[1733660476452,0.0037326,99650.0,99649.0,0.013]
[1733660476654,0.0017326,99650.0,99643.0,0.00056667]
[1733660476866,0.0017326,99650.0,99649.0,0.003]
[1733660477072,0.0017326,99650.0,99649.0,0.005]
[1733660477510,0.0017326,99650.0,99649.0,0.003]
[1733660477732,0.01005301,99650.0,99649.0,0.003]
[1733660477937,0.0017326,99650.0,99649.0,0.003]
[1733660478166,0.01004243,99650.0,99649.0,0.003]
[1733660478371,0.0017326,99650.0,99649.0,0.003]
[1733660478581,0.01003954,99650.0,99649.0,0.005]
[1733660478785,0.0017326,99650.0,99649.0,0.005]
[1733660479005,0.0100492,99650.0,99649.0,0.005]
[1733660479214,0.0017326,99650.0,99649.0,0.005]
[1733660479442,0.01004915,99650.0,99649.0,0.005]
[1733660479680,0.0017326,99650.0,99649.0,0.005]
[1733660479920,0.0017326,99650.0,99643.0,0.00056668]
[1733660480135,0.01003965,99650.0,99649.0,0.005]
[1733660480371,0.0017326,99650.0,99649.0,0.005]
[1733660480590,0.01003965,99650.0,99649.0,0.005]
[1733660480789,0.0017326,99650.0,99649.0,0.003]
[1733660480996,0.01026444,99650.0,99643.0,0.00056668]
[1733660481194,0.0017326,99650.0,99643.0,0.00556668]
[1733660481406,0.00853076,99649.0,99643.0,0.00256668]
[1733660481611,0.00853076,99649.0,99643.0,0.00056668]
[1733660482368,0.00853076,99649.0,99643.0,6.268e-05]
[1733660482369,0.0776,99648.0,99643.0,6.268e-05]
[1733660482590,0.180643,99644.0,99643.0,6.268e-05]
[1733660483052,0.18917484,99644.0,99643.0,6.268e-05]
[1733660483952,0.18917484,99644.0,99643.0,0.00606268]
[1733660484163,0.18917484,99644.0,99643.0,0.00306268]
[1733660484367,0.18917484,99644.0,99643.0,6.268e-05]
[1733660484586,0.18917484,99644.0,99643.0,0.00106268]
[1733660484794,0.18917484,99644.0,99643.0,0.00206268]
[1733660485634,0.00853184,99644.0,99643.0,0.00206268]
[1733660486051,0.180637,99647.0,99643.0,0.00206268]
[1733660486280,0.00851082,99644.0,99643.0,0.00206268]
[1733660486490,0.180637,99647.0,99643.0,0.00206268]
[1733660486688,0.00852165,99644.0,99643.0,0.00206268]
[1733660486819,0.180637,99647.0,99643.0,0.00106268]
[1733660487023,0.00852525,99646.0,99643.0,0.00106268]
[1733660487447,0.180641,99645.0,99643.0,0.00106268]
[1733660487954,0.00852525,99644.0,99643.0,6.268e-05]
[1733660488152,0.00852525,99644.0,99643.0,0.00106268]
[1733660489608,0.00852525,99644.0,99643.0,6.268e-05]
[1733660490082,0.00852525,99644.0,99643.0,0.00106268]
[1733660490286,0.00852525,99644.0,99643.0,0.00206268]
[1733660490484,0.00852525,99644.0,99643.0,0.00106268]
[1733660490924,0.00852525,99644.0,99643.0,0.00206268]
[1733660492644,0.01840354,99644.0,99643.0,0.00206268]
[1733660492861,0.08817974,99644.0,99643.0,0.00206268]
[1733660495999,0.08817974,99644.0,99643.0,0.00106268]
[1733660496437,0.08817974,99644.0,99643.0,6.268e-05]
[1733660496651,0.01152525,99644.0,99643.0,6.268e-05]
[1733660497302,0.00852525,99644.0,99643.0,6.268e-05]
[1733660497531,0.00852525,99644.0,99643.0,0.18070668]
[1733660497761,0.003,99644.0,99643.0,0.18070668]
[1733660497999,0.0017326,99650.0,99643.0,0.18070668]
[1733660498229,0.0017326,99650.0,99644.0,0.00050396]
[1733660498453,0.0017326,99650.0,99643.0,0.00206268]
[1733660498666,0.00848452,99649.0,99644.0,0.00050396]
[1733660498877,0.00848452,99649.0,99643.0,0.00206268]
[1733660498878,0.180635,99648.0,99643.0,0.00206268]
[1733660499088,0.00849703,99648.0,99643.0,0.00206268]
[1733660499544,0.180637,99647.0,99643.0,6.268e-05]
[1733660499747,0.180637,99647.0,99643.0,0.00106268]
[1733660500174,0.00849703,99646.0,99643.0,0.00106268]
[1733660500380,0.00849703,99646.0,99643.0,0.00206268]